[Event "TOP 12 FEMININ 2022 - Phase 1"]
[Site "MULHOUSE, France"]
[Date "2022.04.07"]
[Round "1.15"]
[White "OLGUIN  STR, Monica"]
[Black "GIROD  DOM, Sarah"]
[Result "1-0"]
[TimeControl "90 min +30 secondes par coup"]
[WhiteElo "1674"]
[BlackElo "1507"]

1. e4 {[%clk 01:30:56]} {[%emt 00:00:03]} e6 {[%clk 01:30:54]} {[%emt
00:00:06]} 2. d4 {[%clk 01:31:18]} {[%emt 00:00:08]} d5 {[%clk 01:31:20]}
{[%emt 00:00:04]} 3. exd5 {[%clk 01:31:37]} {[%emt 00:00:11]} exd5 {[%clk
01:31:42]} {[%emt 00:00:09]} 4. Bd3 {[%clk 01:32:00]} {[%emt 00:00:06]} Nc6
{[%clk 01:29:34]} {[%emt 00:02:39]} 5. c3 {[%clk 01:32:15]} {[%emt 00:00:14]}
Bd6 {[%clk 01:29:02]} {[%emt 00:01:03]} 6. Ne2 {[%clk 01:32:25]} {[%emt
00:00:20]} Nge7 {[%clk 01:22:28]} {[%emt 00:07:03]} 7. Qc2 {[%clk 01:30:44]}
{[%emt 00:02:11]} Be6 {[%clk 01:13:20]} {[%emt 00:09:39]} 8. Bf4 {[%clk
01:27:37]} {[%emt 00:03:36]} h6 {[%clk 01:09:55]} {[%emt 00:03:56]} 9. Nd2
{[%clk 01:26:02]} {[%emt 00:02:03]} g5 {[%clk 00:58:50]} {[%emt 00:11:37]} 10.
Bxd6 {[%clk 01:24:22]} {[%emt 00:02:10]} Qxd6 {[%clk 00:59:13]} {[%emt
00:00:06]} 11. O-O-O {[%clk 01:22:53]} {[%emt 00:01:59]} O-O-O {[%clk
00:58:53]} {[%emt 00:00:50]} 12. Nb3 {[%clk 01:18:31]} {[%emt 00:04:53]} f6
{[%clk 00:54:23]} {[%emt 00:05:00]} 13. Nc5 {[%clk 01:15:52]} {[%emt 00:03:09]}
Bf7 {[%clk 00:54:31]} {[%emt 00:00:21]} 14. h3 {[%clk 00:58:54]} {[%emt
00:17:28]} Rhg8 {[%clk 00:54:09]} {[%emt 00:00:52]} 15. Qb3 {[%clk 00:53:20]}
{[%emt 00:06:04]} b6 {[%clk 00:45:14]} {[%emt 00:09:25]} 16. Ba6+ {[%clk
00:52:59]} {[%emt 00:00:50]} Kb8 {[%clk 00:43:57]} {[%emt 00:01:48]} 17. Nb7
{[%clk 00:52:07]} {[%emt 00:01:21]} Qe6 {[%clk 00:41:52]} {[%emt 00:02:36]} 18.
Nxd8 {[%clk 00:51:13]} {[%emt 00:01:24]} Rxd8 {[%clk 00:42:18]} {[%emt
00:00:05]} 19. Rhe1 {[%clk 00:43:39]} {[%emt 00:08:03]} Qe4 {[%clk 00:31:58]}
{[%emt 00:10:50]} 20. Rg1 {[%clk 00:26:23]} {[%emt 00:17:46]} Na5 {[%clk
00:28:59]} {[%emt 00:03:30]} 21. Qc2 {[%clk 00:25:55]} {[%emt 00:00:57]} Qe6
{[%clk 00:27:59]} {[%emt 00:01:30]} 22. Bd3 {[%clk 00:22:19]} {[%emt 00:04:05]}
Bg6 {[%clk 00:13:57]} {[%emt 00:14:33]} 23. Bxg6 {[%clk 00:21:04]} {[%emt
00:01:45]} Nxg6 {[%clk 00:14:16]} {[%emt 00:00:11]} 24. Qxg6 {[%clk 00:19:46]}
{[%emt 00:01:46]} Qxe2 {[%clk 00:14:42]} {[%emt 00:00:06]} 25. Qc2 {[%clk
00:17:20]} {[%emt 00:02:56]} Qe7 {[%clk 00:13:40]} {[%emt 00:01:32]} 26. Rge1
{[%clk 00:17:06]} {[%emt 00:00:44]} Qd6 {[%clk 00:13:52]} {[%emt 00:00:19]} 27.
Qf5 {[%clk 00:14:07]} {[%emt 00:03:27]} Nc4 {[%clk 00:13:11]} {[%emt 00:01:12]}
28. Re6 {[%clk 00:13:34]} {[%emt 00:01:02]} Qd7 {[%clk 00:11:56]} {[%emt
00:01:46]} 29. Qxf6 {[%clk 00:12:20]} {[%emt 00:01:44]} Qa4 {[%clk 00:11:17]}
{[%emt 00:01:09]} 30. Qxd8+ {[%clk 00:12:11]} {[%emt 00:00:38]} Kb7 {[%clk
00:11:43]} {[%emt 00:00:05]} 31. Qxd5+ {[%clk 00:12:30]} {[%emt 00:00:10]} Ka6
{[%clk 00:12:03]} {[%emt 00:00:12]} 32. b3 {[%clk 00:11:56]} {[%emt 00:01:04]}
Qa3+ {[%clk 00:12:27]} {[%emt 00:00:06]} 33. Kc2 {[%clk 00:11:16]} {[%emt
00:01:09]} Qxa2+ {[%clk 00:09:21]} {[%emt 00:03:36]} 34. Kd3 {[%clk 00:11:14]}
{[%emt 00:00:31]} Nb2+ {[%clk 00:09:17]} {[%emt 00:00:35]} 35. Ke4 {[%clk
00:09:11]} {[%emt 00:02:33]} Nxd1 {[%clk 00:09:27]} {[%emt 00:00:21]} 36. Qc4+
{[%clk 00:09:05]} {[%emt 00:00:35]} Kb7 {[%clk 00:09:38]} {[%emt 00:00:19]} 37.
Qc6+ {[%clk 00:08:59]} {[%emt 00:00:36]} Ka6 {[%clk 00:10:02]} {[%emt
00:00:06]} 38. Qa4+ {[%clk 00:07:29]} {[%emt 00:02:00]} Qxa4 {[%clk 00:10:27]}
{[%emt 00:00:06]} 39. bxa4 {[%clk 00:07:54]} {[%emt 00:00:04]} Nxc3+ {[%clk
00:10:52]} {[%emt 00:00:06]} 40. Kf5 {[%clk 00:08:03]} {[%emt 00:00:21]} Nd5
{[%clk 00:10:42]} {[%emt 00:00:40]} 41. Rxh6 {[%clk 00:07:57]} {[%emt
00:00:35]} Ka5 {[%clk 00:10:44]} {[%emt 00:00:28]} 42. Kxg5 {[%clk 00:08:12]}
{[%emt 00:00:15]} Kxa4 {[%clk 00:11:01]} {[%emt 00:00:14]} 43. f4 {[%clk
00:08:24]} {[%emt 00:00:18]} c5 {[%clk 00:07:50]} {[%emt 00:03:40]} 44. dxc5
{[%clk 00:08:33]} {[%emt 00:00:21]} bxc5 {[%clk 00:08:15]} {[%emt 00:00:05]} 45.
Ra6+ {[%clk 00:08:41]} {[%emt 00:00:22]} Kb5 {[%clk 00:08:32]} {[%emt
00:00:14]} 46. Rxa7 {[%clk 00:08:52]} {[%emt 00:00:18]} c4 {[%clk 00:08:57]}
{[%emt 00:00:05]} 47. f5 {[%clk 00:09:00]} {[%emt 00:00:22]} c3 {[%clk
00:09:04]} {[%emt 00:00:24]} 48. f6 {[%clk 00:09:03]} {[%emt 00:00:26]} c2
{[%clk 00:07:18]} {[%emt 00:02:16]} 49. Ra1 {[%clk 00:09:17]} {[%emt 00:00:16]}
1-0

[Event "TOP 12 FEMININ 2022 - Phase 1"]
[Site "MULHOUSE, France"]
[Date "2022.04.07"]
[Round "1.16"]
[White "LANGER  DOM, Karele"]
[Black "SCHMITT  STR, Eleonre"]
[Result "1-0"]
[TimeControl "90 min +30 secondes par coup"]
[WhiteElo "1476"]
[BlackElo "1463"]

1. d4 {[%clk 01:30:57]} {[%emt 00:00:02]} d5 {[%clk 01:30:51]} {[%emt
00:00:09]} 2. c4 {[%clk 01:31:17]} {[%emt 00:00:10]} c6 {[%clk 01:31:02]}
{[%emt 00:00:19]} 3. cxd5 {[%clk 01:31:20]} {[%emt 00:00:26]} cxd5 {[%clk
01:31:17]} {[%emt 00:00:15]} 4. Nc3 {[%clk 01:31:31]} {[%emt 00:00:19]} Nc6
{[%clk 01:30:07]} {[%emt 00:01:41]} 5. Bf4 {[%clk 01:30:33]} {[%emt 00:01:27]}
a6 {[%clk 01:29:36]} {[%emt 00:01:01]} 6. e3 {[%clk 01:30:26]} {[%emt
00:00:37]} Nf6 {[%clk 01:27:40]} {[%emt 00:02:26]} 7. Bd3 {[%clk 01:28:35]}
{[%emt 00:02:21]} Bg4 {[%clk 01:26:20]} {[%emt 00:01:50]} 8. f3 {[%clk
01:21:48]} {[%emt 00:07:18]} Bh5 {[%clk 01:26:18]} {[%emt 00:00:31]} 9. Rc1
{[%clk 01:16:24]} {[%emt 00:05:54]} Rc8 {[%clk 01:26:27]} {[%emt 00:00:21]} 10.
Nge2 {[%clk 01:07:52]} {[%emt 00:09:02]} e6 {[%clk 01:25:58]} {[%emt 00:00:59]}
11. Bg5 {[%clk 01:00:58]} {[%emt 00:07:25]} Be7 {[%clk 01:26:10]} {[%emt
00:00:17]} 12. Nf4 {[%clk 00:59:59]} {[%emt 00:01:29]} Bg6 {[%clk 01:26:04]}
{[%emt 00:00:35]} 13. Nxg6 {[%clk 00:55:02]} {[%emt 00:05:28]} hxg6 {[%clk
01:26:18]} {[%emt 00:00:16]} 14. a3 {[%clk 00:49:04]} {[%emt 00:06:29]} Bd6
{[%clk 01:23:02]} {[%emt 00:03:45]} 15. f4 {[%clk 00:46:33]} {[%emt 00:03:02]}
b5 {[%clk 01:15:36]} {[%emt 00:07:54]} 16. O-O {[%clk 00:31:58]} {[%emt
00:15:05]} Be7 {[%clk 01:14:09]} {[%emt 00:01:57]} 17. b4 {[%clk 00:31:17]}
{[%emt 00:01:11]} Nh7 {[%clk 01:05:45]} {[%emt 00:08:53]} 18. Qc2 {[%clk
00:19:40]} {[%emt 00:12:07]} O-O {[%clk 01:05:17]} {[%emt 00:00:58]} 19. Bxe7
{[%clk 00:19:29]} {[%emt 00:00:42]} Nxe7 {[%clk 01:05:21]} {[%emt 00:00:26]} 20.
Qe2 {[%clk 00:19:00]} {[%emt 00:00:59]} Nf6 {[%clk 01:04:53]} {[%emt 00:00:58]}
21. Qf3 {[%clk 00:17:01]} {[%emt 00:02:29]} Rc6 {[%clk 00:57:15]} {[%emt
00:08:06]} 22. h4 {[%clk 00:11:22]} {[%emt 00:06:11]} Qc7 {[%clk 00:55:49]}
{[%emt 00:01:56]} 23. Ne2 {[%clk 00:11:16]} {[%emt 00:00:37]} Nc8 {[%clk
00:54:32]} {[%emt 00:01:46]} 24. g4 {[%clk 00:09:38]} {[%emt 00:02:08]} Nd6
{[%clk 00:54:16]} {[%emt 00:00:45]} 25. h5 {[%clk 00:09:12]} {[%emt 00:00:57]}
Nde4 {[%clk 00:50:10]} {[%emt 00:04:35]} 26. Rxc6 {[%clk 00:09:21]} {[%emt
00:00:21]} Qxc6 {[%clk 00:50:09]} {[%emt 00:00:31]} 27. Rc1 {[%clk 00:09:41]}
{[%emt 00:00:11]} Qd6 {[%clk 00:46:15]} {[%emt 00:04:23]} 28. hxg6 {[%clk
00:08:50]} {[%emt 00:01:22]} fxg6 {[%clk 00:46:30]} {[%emt 00:00:15]} 29. g5
{[%clk 00:07:12]} {[%emt 00:02:09]} Nd2 {[%clk 00:45:14]} {[%emt 00:01:46]} 30.
Qh3 {[%clk 00:06:17]} {[%emt 00:01:24]} Nfe4 {[%clk 00:45:11]} {[%emt
00:00:33]} 31. Ng3 {[%clk 00:05:37]} {[%emt 00:01:10]} Nxg3 {[%clk 00:28:20]}
{[%emt 00:17:21]} 32. Qxg3 {[%clk 00:05:33]} {[%emt 00:00:34]} Kf7 {[%clk
00:28:22]} {[%emt 00:00:27]} 33. Qg2 {[%clk 00:05:37]} {[%emt 00:00:26]} Nc4
{[%clk 00:28:31]} {[%emt 00:00:21]} 34. Rc3 {[%clk 00:04:38]} {[%emt 00:01:29]}
Rh8 {[%clk 00:28:24]} {[%emt 00:00:38]} 35. Qc2 {[%clk 00:04:35]} {[%emt
00:00:32]} Rh3 {[%clk 00:28:15]} {[%emt 00:00:40]} 36. Bxg6+ {[%clk 00:04:50]}
{[%emt 00:00:16]} Ke7 {[%clk 00:27:37]} {[%emt 00:01:03]} 37. Qf2 {[%clk
00:04:50]} {[%emt 00:00:34]} Qd8 {[%clk 00:26:42]} {[%emt 00:01:24]} 38. f5
{[%clk 00:04:46]} {[%emt 00:00:35]} exf5 {[%clk 00:24:58]} {[%emt 00:02:14]} 39.
Qxf5 {[%clk 00:04:43]} {[%emt 00:00:33]} Rxe3 {[%clk 00:24:14]} {[%emt
00:01:13]} 40. Rxe3+ {[%clk 00:05:06]} {[%emt 00:00:08]} Nxe3 {[%clk 00:24:28]}
{[%emt 00:00:16]} 41. Qe5+ {[%clk 00:05:31]} {[%emt 00:00:04]} 1-0

[Event "TOP 12 FEMININ 2022 - Phase 1"]
[Site "MULHOUSE, France"]
[Date "2022.04.07"]
[Round "1.17"]
[White "GUICHARD  ASN, Pauline"]
[Black "KOSTENIUK  CLI, Alexandra"]
[Result "1-0"]
[TimeControl "90 min +30 secondes par coup"]
[WhiteElo "2371"]
[BlackElo "2516"]

1. d4 {[%clk 01:30:56]} {[%emt 00:00:03]} Nf6 {[%clk 01:30:54]} {[%emt
00:00:06]} 2. c4 {[%clk 01:31:21]} {[%emt 00:00:05]} e6 {[%clk 01:31:20]}
{[%emt 00:00:06]} 3. Nc3 {[%clk 01:31:45]} {[%emt 00:00:05]} Bb4 {[%clk
01:31:45]} {[%emt 00:00:05]} 4. Bd2 {[%clk 01:32:09]} {[%emt 00:00:05]} O-O
{[%clk 01:29:45]} {[%emt 00:02:31]} 5. e3 {[%clk 01:31:04]} {[%emt 00:01:34]}
b6 {[%clk 01:25:59]} {[%emt 00:04:16]} 6. Nf3 {[%clk 01:30:55]} {[%emt
00:00:39]} d5 {[%clk 01:20:00]} {[%emt 00:06:30]} 7. cxd5 {[%clk 01:30:31]}
{[%emt 00:00:53]} exd5 {[%clk 01:20:25]} {[%emt 00:00:06]} 8. Bd3 {[%clk
01:30:23]} {[%emt 00:00:37]} Re8 {[%clk 01:09:11]} {[%emt 00:11:45]} 9. Ne5
{[%clk 01:28:09]} {[%emt 00:02:44]} Bd6 {[%clk 01:02:00]} {[%emt 00:07:40]} 10.
f4 {[%clk 01:28:22]} {[%emt 00:00:17]} c5 {[%clk 00:59:35]} {[%emt 00:02:55]}
11. O-O {[%clk 01:27:42]} {[%emt 00:01:11]} Bb7 {[%clk 00:54:31]} {[%emt
00:05:34]} 12. Be1 {[%clk 01:27:05]} {[%emt 00:01:07]} Nc6 {[%clk 00:51:40]}
{[%emt 00:03:20]} 13. Bf2 {[%clk 01:26:59]} {[%emt 00:00:37]} a6 {[%clk
00:48:08]} {[%emt 00:04:03]} 14. Qf3 {[%clk 01:18:16]} {[%emt 00:09:12]} Ne7
{[%clk 00:35:46]} {[%emt 00:12:52]} 15. Rae1 {[%clk 00:59:36]} {[%emt
00:19:09]} Ng6 {[%clk 00:34:07]} {[%emt 00:02:09]} 16. h4 {[%clk 00:51:35]}
{[%emt 00:08:32]} Ne4 {[%clk 00:31:20]} {[%emt 00:03:16]} 17. Nxe4 {[%clk
00:43:52]} {[%emt 00:08:13]} dxe4 {[%clk 00:31:44]} {[%emt 00:00:06]} 18. Bxe4
{[%clk 00:44:17]} {[%emt 00:00:05]} Bxe4 {[%clk 00:32:08]} {[%emt 00:00:06]} 19.
Qxe4 {[%clk 00:44:44]} {[%emt 00:00:03]} cxd4 {[%clk 00:32:15]} {[%emt
00:00:23]} 20. exd4 {[%clk 00:40:28]} {[%emt 00:04:47]} Bb4 {[%clk 00:32:33]}
{[%emt 00:00:12]} 21. Rd1 {[%clk 00:37:32]} {[%emt 00:03:26]} f6 {[%clk
00:20:18]} {[%emt 00:12:45]} 22. h5 {[%clk 00:35:52]} {[%emt 00:02:09]} Nh8
{[%clk 00:09:04]} {[%emt 00:11:45]} 23. Qf3 {[%clk 00:27:57]} {[%emt 00:08:24]}
fxe5 {[%clk 00:08:27]} {[%emt 00:01:08]} 24. Qb3+ {[%clk 00:28:22]} {[%emt
00:00:05]} Nf7 {[%clk 00:08:53]} {[%emt 00:00:03]} 25. fxe5 {[%clk 00:28:07]}
{[%emt 00:00:45]} Be7 {[%clk 00:06:25]} {[%emt 00:02:58]} 26. Be3 {[%clk
00:21:52]} {[%emt 00:06:45]} Rf8 {[%clk 00:06:51]} {[%emt 00:00:04]} 27. Rf3
{[%clk 00:21:09]} {[%emt 00:01:14]} Ra7 {[%clk 00:05:26]} {[%emt 00:01:55]} 28.
Rdf1 {[%clk 00:20:10]} {[%emt 00:01:28]} Bg5 {[%clk 00:03:50]} {[%emt
00:02:06]} 29. e6 {[%clk 00:17:24]} {[%emt 00:03:16]} Bf6 {[%clk 00:03:23]}
{[%emt 00:00:57]} 30. h6 {[%clk 00:12:41]} {[%emt 00:05:13]} Qe8 {[%clk
00:01:47]} {[%emt 00:02:07]} 31. hxg7 {[%clk 00:10:17]} {[%emt 00:02:53]} Bxg7
{[%clk 00:02:15]} {[%emt 00:00:02]} 32. Qxb6 {[%clk 00:09:56]} {[%emt
00:00:52]} Re7 {[%clk 00:02:28]} {[%emt 00:00:16]} 33. exf7+ {[%clk 00:10:21]}
{[%emt 00:00:05]} Rfxf7 {[%clk 00:01:28]} {[%emt 00:01:30]} 34. Rxf7 {[%clk
00:06:20]} {[%emt 00:04:31]} Rxf7 {[%clk 00:01:49]} {[%emt 00:00:09]} 35. Qb3
{[%clk 00:06:45]} {[%emt 00:00:04]} Kf8 {[%clk 00:01:24]} {[%emt 00:00:57]} 36.
Qxf7+ {[%clk 00:06:32]} {[%emt 00:00:42]} Qxf7 {[%clk 00:01:50]} {[%emt
00:00:04]} 37. Rxf7+ {[%clk 00:06:56]} {[%emt 00:00:06]} Kxf7 {[%clk 00:02:18]}
{[%emt 00:00:02]} 38. Kf2 {[%clk 00:07:18]} {[%emt 00:00:07]} Ke6 {[%clk
00:02:47]} {[%emt 00:00:02]} 39. Ke2 {[%clk 00:07:43]} {[%emt 00:00:06]} Kd5
{[%clk 00:03:13]} {[%emt 00:00:04]} 40. Kd3 {[%clk 00:08:09]} {[%emt 00:00:04]}
h5 {[%clk 00:02:53]} {[%emt 00:00:49]} 41. b4 {[%clk 00:07:45]} {[%emt
00:00:54]} Bf6 {[%clk 00:01:37]} {[%emt 00:01:46]} 42. a4 {[%clk 00:07:47]}
{[%emt 00:00:28]} Bd8 {[%clk 00:01:31]} {[%emt 00:00:37]} 43. Bf4 {[%clk
00:04:03]} {[%emt 00:04:14]} Be7 {[%clk 00:01:24]} {[%emt 00:00:37]} 44. b5
{[%clk 00:04:15]} {[%emt 00:00:17]} axb5 {[%clk 00:01:50]} {[%emt 00:00:04]} 45.
axb5 {[%clk 00:04:42]} {[%emt 00:00:03]} Bd8 {[%clk 00:02:18]} {[%emt
00:00:03]} 46. Be5 {[%clk 00:03:07]} {[%emt 00:02:04]} Ba5 {[%clk 00:02:44]}
{[%emt 00:00:04]} 47. Bf6 {[%clk 00:02:00]} {[%emt 00:01:36]} Bb6 {[%clk
00:03:01]} {[%emt 00:00:14]} 48. Ke3 {[%clk 00:00:55]} {[%emt 00:01:35]} Bc7
{[%clk 00:02:22]} {[%emt 00:01:09]} 49. Be5 {[%clk 00:00:37]} {[%emt 00:00:48]}
Bd8 {[%clk 00:02:44]} {[%emt 00:00:08]} 50. Kf4 {[%clk 00:00:46]} {[%emt
00:00:22]} h4 {[%clk 00:02:52]} {[%emt 00:00:21]} 51. Kf5 {[%clk 00:00:37]}
{[%emt 00:00:39]} Kc4 {[%clk 00:03:11]} {[%emt 00:00:10]} 52. Bf6 {[%clk
00:00:48]} {[%emt 00:00:20]} Bc7 {[%clk 00:03:22]} {[%emt 00:00:20]} 53. Kg4
{[%clk 00:01:02]} {[%emt 00:00:16]} Kxb5 {[%clk 00:03:36]} {[%emt 00:00:15]} 54.
Kxh4 {[%clk 00:01:25]} {[%emt 00:00:08]} Kc4 {[%clk 00:03:56]} {[%emt
00:00:10]} 55. Kg4 {[%clk 00:01:07]} {[%emt 00:00:46]} Kd5 {[%clk 00:04:21]}
{[%emt 00:00:06]} 56. Kf5 {[%clk 00:01:34]} {[%emt 00:00:03]} Bg3 {[%clk
00:04:46]} {[%emt 00:00:05]} 57. Be5 {[%clk 00:02:00]} {[%emt 00:00:04]} 1-0

[Event "TOP 12 FEMININ 2022 - Phase 1"]
[Site "MULHOUSE, France"]
[Date "2022.04.07"]
[Round "1.18"]
[White "KASHLINSKAYA  CLI, Alina"]
[Black "NICOARA  ASN, Malina"]
[Result "1-0"]
[TimeControl "90 min +30 secondes par coup"]
[WhiteElo "2490"]
[BlackElo "2064"]

1. e4 {[%clk 01:30:56]} {[%emt 00:00:03]} c5 {[%clk 01:30:35]} {[%emt
00:00:26]} 2. Nf3 {[%clk 01:31:16]} {[%emt 00:00:10]} Nc6 {[%clk 01:30:48]}
{[%emt 00:00:17]} 3. d4 {[%clk 01:31:34]} {[%emt 00:00:12]} cxd4 {[%clk
01:31:09]} {[%emt 00:00:09]} 4. Nxd4 {[%clk 01:31:58]} {[%emt 00:00:06]} g6
{[%clk 01:31:22]} {[%emt 00:00:17]} 5. c4 {[%clk 01:31:55]} {[%emt 00:00:33]}
Bg7 {[%clk 01:30:30]} {[%emt 00:01:22]} 6. Be3 {[%clk 01:32:09]} {[%emt
00:00:17]} Nf6 {[%clk 01:30:29]} {[%emt 00:00:30]} 7. Nc3 {[%clk 01:32:26]}
{[%emt 00:00:13]} d6 {[%clk 01:29:28]} {[%emt 00:01:31]} 8. Be2 {[%clk
01:32:05]} {[%emt 00:00:51]} O-O {[%clk 01:28:26]} {[%emt 00:01:32]} 9. O-O
{[%clk 01:32:15]} {[%emt 00:00:19]} Bd7 {[%clk 01:23:19]} {[%emt 00:05:37]} 10.
Qd2 {[%clk 01:31:30]} {[%emt 00:01:15]} Nxd4 {[%clk 01:23:05]} {[%emt
00:00:45]} 11. Bxd4 {[%clk 01:31:48]} {[%emt 00:00:12]} Bc6 {[%clk 01:23:26]}
{[%emt 00:00:08]} 12. f3 {[%clk 01:31:50]} {[%emt 00:00:28]} a5 {[%clk
01:20:56]} {[%emt 00:03:00]} 13. b3 {[%clk 01:30:15]} {[%emt 00:02:05]} Nd7
{[%clk 01:19:21]} {[%emt 00:02:05]} 14. Be3 {[%clk 01:30:11]} {[%emt 00:00:34]}
Nc5 {[%clk 01:17:46]} {[%emt 00:02:05]} 15. Rac1 {[%clk 01:29:48]} {[%emt
00:00:53]} Qb6 {[%clk 01:15:33]} {[%emt 00:02:43]} 16. Nb5 {[%clk 01:29:00]}
{[%emt 00:01:17]} Rfc8 {[%clk 01:08:09]} {[%emt 00:07:54]} 17. Rfd1 {[%clk
01:28:46]} {[%emt 00:00:45]} Qd8 {[%clk 00:57:17]} {[%emt 00:11:21]} 18. Nd4
{[%clk 01:27:46]} {[%emt 00:01:31]} Qf8 {[%clk 00:48:22]} {[%emt 00:09:25]} 19.
Bf1 {[%clk 01:26:29]} {[%emt 00:01:47]} h5 {[%clk 00:38:51]} {[%emt 00:10:01]}
20. g3 {[%clk 01:18:36]} {[%emt 00:08:23]} Kh7 {[%clk 00:28:45]} {[%emt
00:10:36]} 21. Nxc6 {[%clk 01:16:01]} {[%emt 00:03:05]} Rxc6 {[%clk 00:19:39]}
{[%emt 00:09:37]} 22. Bg2 {[%clk 01:14:20]} {[%emt 00:02:10]} f5 {[%clk
00:13:07]} {[%emt 00:07:02]} 23. exf5 {[%clk 01:07:25]} {[%emt 00:07:26]} Qxf5
{[%clk 00:13:31]} {[%emt 00:00:06]} 24. f4 {[%clk 01:00:16]} {[%emt 00:07:39]}
Rc7 {[%clk 00:13:54]} {[%emt 00:00:06]} 25. Qe2 {[%clk 00:54:06]} {[%emt
00:06:40]} Re8 {[%clk 00:08:02]} {[%emt 00:06:22]} 26. Rd5 {[%clk 00:48:31]}
{[%emt 00:06:05]} Qf8 {[%clk 00:06:13]} {[%emt 00:02:20]} 27. f5 {[%clk
00:46:56]} {[%emt 00:02:05]} 1-0

[Event "TOP 12 FEMININ 2022 - Phase 1"]
[Site "MULHOUSE, France"]
[Date "2022.04.07"]
[Round "1.19"]
[White "MOINGT  ASN, Anne"]
[Black "BENMESBAH CLI, Natacha"]
[Result "0-1"]
[TimeControl "90 min +30 secondes par coup"]
[WhiteElo "2036"]
[BlackElo "2244"]

1. e4 {[%clk 01:30:58]} {[%emt 00:44:29]} d6 {[%clk 01:30:51]} 2. d4 {[%clk
01:30:58]} Nf6 {[%clk 01:30:51]} 3. Bd3 {[%clk 01:30:58]} e5 {[%clk 01:30:51]}
4. c3 {[%clk 01:30:58]} d5 {[%clk 01:30:51]} 5. dxe5 {[%clk 01:30:58]} Nxe4
{[%clk 01:30:51]} 6. Nf3 {[%clk 01:28:30]} {[%emt 00:09:13]} Nc6 {[%clk
01:24:50]} 7. Nbd2 {[%clk 01:23:41]} {[%emt 00:09:45]} Nc5 {[%clk 01:21:41]} 8.
Bc2 {[%clk 01:24:03]} {[%emt 00:03:47]} Bg4 {[%clk 01:17:49]} 9. O-O {[%clk
01:21:01]} {[%emt 00:07:52]} Be7 {[%clk 01:14:37]} 10. Re1 {[%clk 01:19:45]}
{[%emt 00:05:30]} Ne6 {[%clk 01:05:45]} 11. Nb3 {[%clk 01:10:25]} {[%emt
00:19:12]} Bh5 {[%clk 01:01:25]} 12. Bf5 {[%clk 00:49:22]} {[%emt 00:26:23]} a5
{[%emt 00:07:21]} 13. a4 {[%clk 00:45:39]} Bg6 {[%clk 00:52:33]} 14. Qd3 {[%clk
00:45:39]} Qd7 {[%clk 00:32:08]} {[%emt 00:33:36]} 15. Be3 Rd8 {[%emt
00:09:44]} 16. Bxg6 {[%clk 00:31:18]} {[%emt 00:00:40]} hxg6 {[%clk 00:31:17]}
{[%emt 00:01:20]} 17. Qb5 {[%clk 00:31:36]} {[%emt 00:00:12]} b6 {[%clk
00:28:46]} {[%emt 00:03:02]} 18. Rad1 {[%clk 00:31:04]} {[%emt 00:01:02]} Nb8
{[%clk 00:24:51]} {[%emt 00:04:25]} 19. Qxd7+ {[%clk 00:27:22]} {[%emt
00:04:13]} Rxd7 {[%clk 00:25:16]} {[%emt 00:00:04]} 20. Nfd4 {[%clk 00:24:28]}
{[%emt 00:03:24]} c5 {[%clk 00:21:22]} {[%emt 00:04:24]} 21. Nb5 {[%clk
00:22:22]} {[%emt 00:02:36]} g5 {[%clk 00:20:10]} {[%emt 00:01:43]} 22. f3
{[%clk 00:18:49]} {[%emt 00:04:02]} Rh4 {[%clk 00:16:01]} {[%emt 00:04:39]} 23.
g4 {[%clk 00:16:21]} {[%emt 00:02:58]} Kf8 {[%clk 00:12:58]} {[%emt 00:03:33]}
24. Nd2 {[%clk 00:14:07]} {[%emt 00:02:44]} Rh6 {[%clk 00:11:51]} {[%emt
00:01:37]} 25. Nf1 {[%clk 00:12:58]} {[%emt 00:01:38]} Nc6 {[%clk 00:12:00]}
{[%emt 00:00:22]} 26. Bc1 {[%clk 00:12:42]} {[%emt 00:00:46]} Nf4 {[%clk
00:10:01]} {[%emt 00:02:29]} 27. c4 {[%clk 00:06:48]} {[%emt 00:06:24]} d4
{[%clk 00:09:59]} {[%emt 00:00:32]} 28. Bxf4 {[%clk 00:06:58]} {[%emt
00:00:19]} gxf4 {[%clk 00:10:25]} {[%emt 00:00:04]} 29. Re4 {[%emt 00:01:52]}
g5 {[%clk 00:09:30]} 30. Nc3 {[%clk 00:05:54]} {[%emt 00:01:38]} dxc3 {[%clk
00:06:12]} {[%emt 00:03:47]} 31. Rxd7 {[%clk 00:06:21]} {[%emt 00:00:04]} c2
{[%clk 00:06:39]} {[%emt 00:00:03]} 32. Re1 {[%clk 00:06:45]} {[%emt 00:00:06]}
Nxe5 {[%clk 00:06:59]} {[%emt 00:00:10]} 33. Rxe7 {[%clk 00:05:39]} {[%emt
00:01:36]} Kxe7 {[%clk 00:07:25]} {[%emt 00:00:04]} 34. Nd2 {[%clk 00:04:11]}
{[%emt 00:01:59]} Re6 {[%clk 00:06:28]} {[%emt 00:01:27]} 35. Rc1 {[%clk
00:04:09]} {[%emt 00:00:31]} Rd6 {[%clk 00:06:19]} {[%emt 00:00:39]} 0-1